Cogmind - Beta 10 X2 --- EXPLORER MODE // 2020.07.18 @ 21:35:48 // Experiment/BattleRoyale Player: Minty Result: Destroyed by CriticalVortex-21 with HERF Cannon Performance ------------- Evolutions (0) 0 Regions Visited (0) 0 Robots Destroyed (1) 5 Value Destroyed (500) 500 Prototype IDs (1) 20 Alien Tech Used (0) 0 Bonus (0) 0 TOTAL SCORE: 525 Bonus ------- None Cogmind --------- Core Integrity 0/250 Matter 165/300 Energy 454/455 System Corruption 1% Temperature Cool (49) Movement Core (400) Ox7 Location -5/Wartown Parts ------- > --- POWER (2) -------- Nuclear Core Neutrino Core > --- PROPULSION (4) --- (None) > --- UTILITY (6) ------ (None) > --- WEAPON (4) ------- High-powered Shotgun > --- INVENTORY (4) ---- (None) Peak State ------------ > --- POWER ------------ Nuclear Core Neutrino Core > --- PROPULSION ------- Advanced Heavy Treads Flexi-carbon Leg Myomer Leg > --- UTILITY ---------- Inertial Stasis Machine Advanced Particle Charger Improved Maneuvering Thrusters Advanced Reaction Control System Improved Phase Shifter Improved Phase Shifter > --- WEAPON ----------- High-powered Shotgun Smartbomb Launcher > --- INVENTORY -------- (None) [Rating: 95] Favorites ----------- Power Nuclear Core Power Core Nuclear Core Propulsion Advanced Heavy Treads Treads Advanced Heavy Treads Leg Myomer Leg Utility Advanced Reaction Control System Device Advanced Reaction Control System Weapon High-powered Shotgun Ballistic Gun High-powered Shotgun Ballistic Cannon Enhanced Gauss Cannon Launcher Smartbomb Launcher Build | -5 ------- Run | Tow Slots Evolved . | . Power . | . Propulsion . | . Utility . | . Weapon . | . Parts Attached 1 | 1 Power . | . Engine . | . Core . | . Reactor . | . Propulsion . | . Treads . | . Leg . | . Wheel . | . Hover . | . Flight . | . Utility . | . Device . | . Storage . | . Processor . | . Hackware . | . Protection . | . Artifact . | . Weapon 1 | 1 Energy Gun . | . Energy Cannon . | . Ballistic Gun . | . Ballistic Cannon 1 | 1 Launcher . | . Special Weapon . | . Impact Weapon . | . Slashing Weapon . | . Piercing Weapon . | . Special Melee Weapon . | . Unidentified Prototypes . | . Parts Lost 2 | 2 Power . | . Propulsion 1 | 1 Utility . | . Weapon 1 | 1 Highest Loss Streak 2 | 2 Average Slot Usage (%) 37 | 37 Core 12 | 12 Treads 6 | 6 Device 6 | 6 Ballistic Gun 6 | 6 Ballistic Cannon 2 | 2 Launcher 3 | 3 Naked Turns . | . Heaviest Build 46 | 46 Greatest Support 70 | 70 Greatest Overweight (x) . | . Average Overweight (x) . | . Largest Inventory Capacity 4 | 4 Average Capacity 4 | 4 Most Carried . | . Average Carried . | . Final Capacity 4 | 4 Final Carried . | . Class Distribution -------------------- 100% | Hacker-Mutant Dominant Class ---------------- Hacker-Mutant | -5/Wartown Resources | -5 ----------- Run | Tow Matter Collected 1 | 1 Remotely . | . Salvage Created 1 | 1 Parts . | . Haulers Intercepted . | . Recyclers Shooed . | . Parts Field Recycled . | . Retrieved Matter . | . Parts Self-Destructed . | . Prevented . | . Kills | -5 ------- Run | Tow Combat Hostiles Destroyed 1 | 1 Guns 1 | 1 Classes Destroyed 1 | 1 Player 1 | 1 Best Kill Streak 1 | 1 Combat Bots Only 1 | 1 Max Kills in Single Turn 1 | 1 Gunslinging . | . Exploded . | . Melee . | . Uniques/NPCs Destroyed . | . Combat | -5 -------- Run | Tow Damage Taken 469 | 469 Core 266 | 266 Absorbed by Shields . | . Redirected to Core 5343 | 5343 Core Remaining (%) . | . Volleys Fired 21 | 21 Largest 2 | 2 Hottest 82 | 82 Shots Fired 23 | 23 Gun 17 | 17 Cannon 2 | 2 Launcher 4 | 4 Special . | . Kinetic 19 | 19 Thermal . | . Explosive 4 | 4 Electromagnetic . | . Robot Hit Streak 20 | 20 Robot Miss Streak 1 | 1 Penetration Max . | . Secondary Targets . | . Shots Hit Robots 16 | 16 Core Hits 2 | 2 Critical Hits 1 | 1 Critical Kills . | . Critical Parts Destroyed 1 | 1 Melee Attacks . | . Impact . | . Slashing . | . Piercing . | . Sneak Attacks . | . Combat Hostiles . | . Follow-up Attacks . | . Damage Inflicted 664 | 664 Guns 277 | 277 Cannons 30 | 30 Explosions 357 | 357 Melee . | . Ramming . | . Kinetic 307 | 307 Thermal . | . Explosive 357 | 357 Electromagnetic . | . Impact . | . Slashing . | . Piercing . | . Highest Corruption 1 | 1 Average Corruption 1 | 1 Corruption Purged . | . Overload Shots . | . Overflow Damage . | . Projectiles . | . Explosions . | . Melee . | . Knockbacks . | . Impact . | . Kinetic . | . Secondary . | . Self-Inflicted Damage 53 | 53 Shots 2 | 2 Rammed . | . Targets Rammed . | . Kicked . | . Crushed . | . Highest Temperature 205 | 205 Average Temperature 88 | 88 Received Heat Transfer 84 | 84 Siege Activations . | . Robots Corrupted . | . Combat Hostiles . | . Parts Fried . | . Impact Corruptions . | . Robots Melted . | . Combat Hostiles . | . Parts Melted . | . Heat Transferred . | . Parts Sabotaged . | . Parts Stolen . | . Parts Stripped . | . Power Chain Reactions . | . Missiles Intercepted . | . Alert | -5 ------- Run | Tow Peak Influence . | . Average Influence . | . Maximum Alert Level . | . Low Security (%) . | . Level 1 . | . Level 2 . | . Level 3 . | . Level 4 . | . Level 5 . | . High Security . | . Max Security . | . Squads Dispatched . | . Investigation . | . Extermination . | . Reinforcement . | . Assault . | . Garrison . | . Intercept . | . Construction Impeded . | . Haulers Reinforced . | . Stealth | -5 --------- Run | Tow Distress Signals . | . Communications Jammed . | . Distress Signals . | . Times Spotted 2 | 2 Peak Tracking Total 1 | 1 Tactical Retreats . | . Traps | -5 ------- Run | Tow Traps Triggered . | . Indirectly . | . Trap Hack Attempts . | . Triggered . | . Disarmed . | . Reprogrammed . | . Reused . | . Traps Extracted . | . Installed . | . Triggered . | . Machines | -5 ---------- Run | Tow Machines Disabled 3 | 3 Max in Single Turn 2 | 2 Machines Sabotaged . | . Garrisons Compromised . | . Overloaded Fab Kills . | . Fab Network Shutdowns . | . Hacking | -5 --------- Run | Tow Machines Accessed . | . Terminals . | . Fabricators . | . Repair Stations . | . Recycling Units . | . Scanalyzers . | . Garrison Access . | . Total Hacks . | . Successful . | . Failed . | . Catastrophic . | . Database Lockouts . | . Manual . | . Terminals . | . Fabricators . | . Repair Stations . | . Recycling Units . | . Scanalyzers . | . Garrison Access . | . Terminal Hacks . | . Fabricator Hacks . | . Repair Station Hacks . | . Recycling Unit Hacks . | . Scanalyzer . | . Garrison Access Hacks . | . Unauthorized Hacks . | . Terminals . | . Fabricators . | . Repair Stations . | . Recycling Units . | . Scanalyzers . | . Garrison Access . | . Data Cores Recovered . | . Used . | . Hacking Detections . | . Full Trace Events . | . Feedback Events . | . Feedback Blocked . | . Robot Schematics Acquired . | . Robots Built . | . Matter . | . Time . | . Total Robot Build Rating . | . Part Schematics Acquired . | . Parts Built . | . Matter . | . Time . | . Total Part Build Rating . | . Parts Repaired . | . Time . | . Parts Recycled . | . Recycled Matter . | . Retrieved Matter . | . Retrieved Components . | . Parts Scanalyzed . | . Part Schematics Acquired . | . Parts Damaged . | . Bothacking | -5 ------------ Run | Tow Used RIF Installer . | . Robots Hacked . | . Non-combat . | . Combat . | . Robot Hacks Applied . | . Relay Couplers Released . | . Robots Rewired . | . Allies Hacked . | . Hacks Repelled . | . Allies | -5 -------- Run | Tow Total Allies . | . Largest Group . | . Highest-Rated Group . | . Highest-Rated Ally . | . Total Orders . | . Ally Attacks . | . Total Damage . | . Kills . | . Allies Corrupted . | . Allies Melted . | . Intel | -5 ------- Run | Tow Robot Analysis Total . | . Derelict Logs Recovered . | . Drone Launches . | . Drone Recoveries . | . Exploration | -5 ------------- Run | Tow Turns Passed 264 | 264 Spaces Moved 149 | 149 Core . | . Treads 145 | 145 Legs 4 | 4 Wheels . | . Hover . | . Flight . | . Fastest Speed 120 | 120 Average Speed 144 | 144 Slowest Speed 145 | 145 Overloaded Moves . | . Propulsion Burnouts . | . Robots Hopped . | . Cave-ins Triggered . | . Exploration Rate (%) 3 | 3 Regions Visited 1 Branch Regions 1 Pre-discovered Areas . | . Known Exits Taken . | . Unknown Exits Taken . | . Scrap Searched . | . Spaces Dug . | . Terrain Destroyed 36 | 36 Melee . | . Projectile . | . AOE 36 | 36 Actions | -5 --------- Run | Tow Total 180 | 180 Wait . | . Move 149 | 149 Hop . | . Pick Up . | . Fast Attach 1 | 1 Attach . | . Detach . | . Swap . | . Drop 9 | 9 Fire 21 | 21 Melee . | . Ram . | . Kick . | . Crush . | . Escape Stasis . | . Rewire . | . Trap . | . Miscellaneous . | . Route ------- -5/Wartown History --------- Turn | Location | Event 44 | -5/Wartown | Core integrity fell below 50% 60 | -5/Wartown | Core integrity fell below 20% 265 | -5/Wartown | Destroyed by CriticalVortex-21 with HERF Cannon Last Messages --------------- 00007_ Dropped Imp. Phase Shifter. 00008_ Dropped Imp. Maneuvering Thrusters. 00009_ Dropped Adv. Particle Charger. 00009_ Dropped Inertial Stasis Machine. 00039_ Nuclear Reactor explodes. 00042_ The unstable cave ceiling collapses. 00054_ Humpbackslug-25 suffers critical hit. 00054_ Destroyed Imp. Heavy Treads. 00055_ The unstable cave ceiling collapses. 00060_ Humpbackslug-25 destroyed. 00132_ Acquired Enh. Gauss Cannon. 00136_ Dropped Smartbomb Launcher. 00223_ The unstable cave ceiling collapses. 00231_ Pressure Siphon disabled. 00236_ Acquired 1 matter. 00259_ Critical hit. 00259_ Enh. Gauss Cannon destroyed. 00262_ Critical hit. 00262_ Adv. Heavy Treads destroyed. 00262_ Dropped Adv. Reaction Control System. Map ----- +----------------------------------------------------+ | # # " #????????????????????? | | # # # #????????????????????? | | # #????????????????????? | | # ###### ! #????????????????????? | | # #????# #????????????????????? | | ####????# # #????????????????????? | | ?????? # = #????????????????????? | | ???# #######+####?????????? | | ???# # ## # ## # ????????? | | ???# # ????????? | | ???# ????????? | | ???# # ???????? | | ???# ???????? | | ???###### #+#### ??????? | | ?????? ??????? | | ?????? # ??????? | | ?????? """ """ """ # * ! ??????? | | ????????"" """ """ # " " """ ??????? | | ?????????"???" """ + """ """ ???????? | | ??????????????? # """ """ ???????? | | ?????????????????### """ """ ????????? | | ?????????????????# ????????? | | ?????????????????# """ """ ????????? | | ?????????????????# """ """ ????????? | | ?????????????????# """ """ ?????????? | | ?????????????????# """@""" [??????????? | | ?????????????????# @ ??????????? | | ?????????????????# ????????????? | | ?????????????????# ???????????? | | ?????????????????# ##############???????????? | | ?????????????????# ?????????????????????????? | | ?????????????????# ?????????????????????????? | | ?????????????????# ?????????????????????????? | | ?????????????????# ?????????????????????????? | | ????????????????? ??????????????????????????? | | ???????????????? ??????????????????????????? | | ??????????????? ???????????????????????????? | | ???????????????? ???????????????????????????? | | ?????????????????? ???????????????????????????? | | ?????????????????????????????????????????????????? | | ?????????????????????????????????????????????????? | | ?????????????????????????????????????????????????? | | ?????????????????????????????????????????????????? | | ?????????????????????????????????????????????????? | | ?????????????????????????????????????????????????? | | ?????????????????????????????????????????????????? | | ?????????????????????????????????????????????????? | | ?????????????????????????????????????????????????? | | ?????????????????????????????????????????????????? | | ?????????????????????????????????????????????????? | +----------------------------------------------------+ Best States ------------- Heat Dissipation 25 Energy Generation 28 Energy Capacity 455 Matter Stores 300 Matter Capacity 300 Sight Range 16 Terrain Scan Density 10 Resistance: KI 35 Resistance: TH 35 Resistance: EX 35 Resistance: EM 35 Resistance: I 35 Resistance: S 35 Resistance: P 35 Evasion (%) 40 Recoil Reduction 2 Offensive Hacking 20 Item Schematics ----------------- None Robot Schematics ------------------ None Fabricated ------------ Nothing Alien Tech Used ----------------- None Achievements -------------- None Challenges ------------ None Game ------ Seed ExplosiveSpikedGuard Manual? 0 Play Time 00:04:30 Cumulative 211.3 hours Start 2020.07.18 @ 21:33:29 End 2020.07.18 @ 21:35:48 Sessions 1 Manual Loads 0 Difficulty Explorer Special Mode Experiment/BattleRoyale Game No. 117 Rogue 0 Adventurer 44 Explorer 73 Win Type - Total 4 Types 3/0/1/0/0/0/0 Lore% 53 Gallery% 79 Achievement% 58 Wizard Run 0 Options --------- ASCII 0 Keyboard 0 Movement Mouse Keybinds 0 Fullscreen 1 Font 18/TerminusBold Map View 76x50 Tactical HUD 1 Map Filters NONE Filters SATURATION(100) Steam 1 RUN: ae585302-3d3c-491e-88c9-ccf48125f8de